{"text_format":"3","workbook":"xlsx","n_sheets":14,"sheets":["dicas","resumo","jan","fev","mar","abr","mai","jun","jul","ago","set","out","nov","dez"],"not_rendered":{"charts":1,"defined_names":27},"read":"whole","date_system":"1900"}

{"sheet":"dicas","index":0,"n_rows":18,"n_cols":1,"rows_kept":18}
["DICAS DE MODELO"]
["Há uma maneira fácil de alternar entre a planilha de resumo de Tendências de despesas e os detalhes de despesas mensais?"]
["Para navegar rapidamente para as despesas de um mês específico, clique no link de navegação associado acima do gráfico, como o link de navegação Jan na célula B2. Para retornar à planilha Tendências de despesas, clique no link de navegação Resumo na célula D1. "]
["Para retornar para esta planilha de dicas, selecione N2 na planilha de resumo. De qualquer planilha de mês, selecione E1."]
["Como posso adicionar um novo Tipo de despesa no Resumo de despesas ou novas despesas mensais?"]
["O Resumo de despesas abaixo do gráfico e os detalhes de despesas de cada mês são tabelas do Excel. Para adicionar novas linhas em qualquer tabela do Excel, siga um destes procedimentos:"]
[{"$f":"ROW(A1)&\". Se a tabela não tiver uma linha de Total, comece a digitar abaixo da tabela, e ela será expandida automaticamente quando você pressionar as teclas Enter ou Tab.\"","v":"1. Se a tabela não tiver uma linha de Total, comece a digitar abaixo da tabela, e ela será expandida automaticamente quando você pressionar as teclas Enter ou Tab."}]
[{"$f":"ROW(A2)&\". Coloque o ponteiro da célula na última célula acima da linha de Total, como o total da última despesa, e pressione a tecla Tab.\"","v":"2. Coloque o ponteiro da célula na última célula acima da linha de Total, como o total da última despesa, e pressione a tecla Tab."}]
[{"$f":"ROW(A3)&\". Clique com o botão direito do mouse na tabela e, no menu pop-up, aponte para Inserir e clique em Linhas de Tabela Acima ou Linhas de Tabela Abaixo.\"","v":"3. Clique com o botão direito do mouse na tabela e, no menu pop-up, aponte para Inserir e clique em Linhas de Tabela Acima ou Linhas de Tabela Abaixo."}]
[{"$f":"ROW(A4)&\". No canto inferior direito da tabela, coloque o mouse sobre a alça de dimensionamento da tabela e arraste para baixo para aumentar o número de linhas de tabela disponíveis.\"","v":"4. No canto inferior direito da tabela, coloque o mouse sobre a alça de dimensionamento da tabela e arraste para baixo para aumentar o número de linhas de tabela disponíveis."}]
["Insira a despesa na planilha Resumo da tabela ResumoDespesas, na coluna Despesas."]
["Adicione o valor da despesa para cada tipo de despesa na planilha do mês correspondente."]
["Por exemplo: \"Despesa 1\" ocorre nos meses Jan a Jun e Dez. "]
[{"$f":"ROW(A1)&\". A Despesa 1 é inserida na planilha de resumo em Despesa na tabela ResumoDespesas (como o título para o tipo de despesa)\"","v":"1. A Despesa 1 é inserida na planilha de resumo em Despesa na tabela ResumoDespesas (como o título para o tipo de despesa)"}]
[{"$f":"ROW(A2)&\". Para cada mês de ocorrência da despesa, insira o valor da despesa na planilha de mês correspondente.\"","v":"2. Para cada mês de ocorrência da despesa, insira o valor da despesa na planilha de mês correspondente."}]
[{"$f":"ROW(A3)&\". O tipo de despesa da planilha ResumoDespesas cria uma lista de categorias para a coluna Categoria na planilha de cada mês.\"","v":"3. O tipo de despesa da planilha ResumoDespesas cria uma lista de categorias para a coluna Categoria na planilha de cada mês."}]
[{"$f":"ROW(A4)&\". Use a lista de categorias na coluna Categoria para selecionar o tipo de despesa correspondente para o valor de despesa inserido\"","v":"4. Use a lista de categorias na coluna Categoria para selecionar o tipo de despesa correspondente para o valor de despesa inserido"}]
[{"$f":"ROW(A5)&\". Para adicionar novas despesas para qualquer mês, adicione uma nova linha à tabela ResumoDespesas na planilha de resumo e insira os detalhes de despesas correspondentes na planilha de mês à qual ela se aplica.\"","v":"5. Para adicionar novas despesas para qualquer mês, adicione uma nova linha à tabela ResumoDespesas na planilha de resumo e insira os detalhes de despesas correspondentes na planilha de mês à qual ela se aplica."}]

{"sheet":"resumo","index":1,"n_rows":10,"n_cols":15,"rows_kept":10}
["TENDÊNCIAS DE DESPESAS"]
[null,"Jan","Fev","Mar","Abr","Mai","Jun","Jul","Ago","Set","Out","Nov","Dez","Dicas"]
[]
["Despesas","Jan","Fev","Mar","Abr","Mai","Jun","Jul","Ago","Set","Out","Nov","Dez","Total","Tendência"]
["Despesa 1",{"$f":"SUMIFS(DespJan[Valor], DespJan[Categoria], ResumoDespesas[[#This Row],[Despesas]])","v":{"v":33,"d":"33.00"}},{"$f":"SUMIFS(DespFev[Valor], DespFev[Categoria], ResumoDespesas[[#This Row],[Despesas]])","v":{"v":375,"d":"375.00"}},{"$f":"SUMIFS(DespMar[Valor], DespMar[Categoria], ResumoDespesas[[#This Row],[Despesas]])","v":{"v":33,"d":"33.00"}},{"$f":"SUMIFS(DespAbr[Valor], DespAbr[Categoria], ResumoDespesas[[#This Row],[Despesas]])","v":{"v":45,"d":"45.00"}},{"$f":"SUMIFS(DespMai[Valor], DespMai[Categoria], ResumoDespesas[[#This Row],[Despesas]])","v":{"v":375,"d":"375.00"}},{"$f":"SUMIFS(DespJun[Valor], DespJun[Categoria], ResumoDespesas[[#This Row],[Despesas]])","v":{"v":201,"d":"201.00"}},{"$f":"SUMIFS(DespJul[Valor], DespJul[Categoria], ResumoDespesas[[#This Row],[Despesas]])","v":{"v":0,"d":"0.00"}},{"$f":"SUMIFS(DespAgo[Valor], DespAgo[Categoria], ResumoDespesas[[#This Row],[Despesas]])","v":{"v":0,"d":"0.00"}},{"$f":"SUMIFS(DespSet[Valor], DespSet[Categoria], ResumoDespesas[[#This Row],[Despesas]])","v":{"v":0,"d":"0.00"}},{"$f":"SUMIFS(DespOut[Valor], DespOut[Categoria], ResumoDespesas[[#This Row],[Despesas]])","v":{"v":0,"d":"0.00"}},{"$f":"SUMIFS(DespNov[Valor], DespNov[Categoria], ResumoDespesas[[#This Row],[Despesas]])","v":{"v":0,"d":"0.00"}},{"$f":"SUMIFS(DespDez[Valor], DespDez[Categoria], ResumoDespesas[[#This Row],[Despesas]])","v":{"v":201,"d":"201.00"}},{"$f":"SUM(ResumoDespesas[[#This Row],[Jan]:[Dez]])","v":{"v":1263,"d":"1,263.00"}}]
["Despesa 2",{"$f":"SUMIFS(DespJan[Valor], DespJan[Categoria], ResumoDespesas[[#This Row],[Despesas]])","v":{"v":238,"d":"238.00"}},{"$f":"SUMIFS(DespFev[Valor], DespFev[Categoria], ResumoDespesas[[#This Row],[Despesas]])","v":{"v":238,"d":"238.00"}},{"$f":"SUMIFS(DespMar[Valor], DespMar[Categoria], ResumoDespesas[[#This Row],[Despesas]])","v":{"v":238,"d":"238.00"}},{"$f":"SUMIFS(DespAbr[Valor], DespAbr[Categoria], ResumoDespesas[[#This Row],[Despesas]])","v":{"v":123,"d":"123.00"}},{"$f":"SUMIFS(DespMai[Valor], DespMai[Categoria], ResumoDespesas[[#This Row],[Despesas]])","v":{"v":111,"d":"111.00"}},{"$f":"SUMIFS(DespJun[Valor], DespJun[Categoria], ResumoDespesas[[#This Row],[Despesas]])","v":{"v":98,"d":"98.00"}},{"$f":"SUMIFS(DespJul[Valor], DespJul[Categoria], ResumoDespesas[[#This Row],[Despesas]])","v":{"v":0,"d":"0.00"}},{"$f":"SUMIFS(DespAgo[Valor], DespAgo[Categoria], ResumoDespesas[[#This Row],[Despesas]])","v":{"v":0,"d":"0.00"}},{"$f":"SUMIFS(DespSet[Valor], DespSet[Categoria], ResumoDespesas[[#This Row],[Despesas]])","v":{"v":0,"d":"0.00"}},{"$f":"SUMIFS(DespOut[Valor], DespOut[Categoria], ResumoDespesas[[#This Row],[Despesas]])","v":{"v":0,"d":"0.00"}},{"$f":"SUMIFS(DespNov[Valor], DespNov[Categoria], ResumoDespesas[[#This Row],[Despesas]])","v":{"v":0,"d":"0.00"}},{"$f":"SUMIFS(DespDez[Valor], DespDez[Categoria], ResumoDespesas[[#This Row],[Despesas]])","v":{"v":440,"d":"440.00"}},{"$f":"SUM(ResumoDespesas[[#This Row],[Jan]:[Dez]])","v":{"v":1486,"d":"1,486.00"}}]
["Despesa 3",{"$f":"SUMIFS(DespJan[Valor], DespJan[Categoria], ResumoDespesas[[#This Row],[Despesas]])","v":{"v":110,"d":"110.00"}},{"$f":"SUMIFS(DespFev[Valor], DespFev[Categoria], ResumoDespesas[[#This Row],[Despesas]])","v":{"v":110,"d":"110.00"}},{"$f":"SUMIFS(DespMar[Valor], DespMar[Categoria], ResumoDespesas[[#This Row],[Despesas]])","v":{"v":110,"d":"110.00"}},{"$f":"SUMIFS(DespAbr[Valor], DespAbr[Categoria], ResumoDespesas[[#This Row],[Despesas]])","v":{"v":125,"d":"125.00"}},{"$f":"SUMIFS(DespMai[Valor], DespMai[Categoria], ResumoDespesas[[#This Row],[Despesas]])","v":{"v":333,"d":"333.00"}},{"$f":"SUMIFS(DespJun[Valor], DespJun[Categoria], ResumoDespesas[[#This Row],[Despesas]])","v":{"v":122,"d":"122.00"}},{"$f":"SUMIFS(DespJul[Valor], DespJul[Categoria], ResumoDespesas[[#This Row],[Despesas]])","v":{"v":0,"d":"0.00"}},{"$f":"SUMIFS(DespAgo[Valor], DespAgo[Categoria], ResumoDespesas[[#This Row],[Despesas]])","v":{"v":0,"d":"0.00"}},{"$f":"SUMIFS(DespSet[Valor], DespSet[Categoria], ResumoDespesas[[#This Row],[Despesas]])","v":{"v":0,"d":"0.00"}},{"$f":"SUMIFS(DespOut[Valor], DespOut[Categoria], ResumoDespesas[[#This Row],[Despesas]])","v":{"v":0,"d":"0.00"}},{"$f":"SUMIFS(DespNov[Valor], DespNov[Categoria], ResumoDespesas[[#This Row],[Despesas]])","v":{"v":0,"d":"0.00"}},{"$f":"SUMIFS(DespDez[Valor], DespDez[Categoria], ResumoDespesas[[#This Row],[Despesas]])","v":{"v":122,"d":"122.00"}},{"$f":"SUM(ResumoDespesas[[#This Row],[Jan]:[Dez]])","v":{"v":1032,"d":"1,032.00"}}]
["Despesa 4",{"$f":"SUMIFS(DespJan[Valor], DespJan[Categoria], ResumoDespesas[[#This Row],[Despesas]])","v":{"v":426,"d":"426.00"}},{"$f":"SUMIFS(DespFev[Valor], DespFev[Categoria], ResumoDespesas[[#This Row],[Despesas]])","v":{"v":84,"d":"84.00"}},{"$f":"SUMIFS(DespMar[Valor], DespMar[Categoria], ResumoDespesas[[#This Row],[Despesas]])","v":{"v":84,"d":"84.00"}},{"$f":"SUMIFS(DespAbr[Valor], DespAbr[Categoria], ResumoDespesas[[#This Row],[Despesas]])","v":{"v":426,"d":"426.00"}},{"$f":"SUMIFS(DespMai[Valor], DespMai[Categoria], ResumoDespesas[[#This Row],[Despesas]])","v":{"v":125,"d":"125.00"}},{"$f":"SUMIFS(DespJun[Valor], DespJun[Categoria], ResumoDespesas[[#This Row],[Despesas]])","v":{"v":187,"d":"187.00"}},{"$f":"SUMIFS(DespJul[Valor], DespJul[Categoria], ResumoDespesas[[#This Row],[Despesas]])","v":{"v":0,"d":"0.00"}},{"$f":"SUMIFS(DespAgo[Valor], DespAgo[Categoria], ResumoDespesas[[#This Row],[Despesas]])","v":{"v":0,"d":"0.00"}},{"$f":"SUMIFS(DespSet[Valor], DespSet[Categoria], ResumoDespesas[[#This Row],[Despesas]])","v":{"v":0,"d":"0.00"}},{"$f":"SUMIFS(DespOut[Valor], DespOut[Categoria], ResumoDespesas[[#This Row],[Despesas]])","v":{"v":0,"d":"0.00"}},{"$f":"SUMIFS(DespNov[Valor], DespNov[Categoria], ResumoDespesas[[#This Row],[Despesas]])","v":{"v":0,"d":"0.00"}},{"$f":"SUMIFS(DespDez[Valor], DespDez[Categoria], ResumoDespesas[[#This Row],[Despesas]])","v":{"v":187,"d":"187.00"}},{"$f":"SUM(ResumoDespesas[[#This Row],[Jan]:[Dez]])","v":{"v":1519,"d":"1,519.00"}}]
["Despesa 5",{"$f":"SUMIFS(DespJan[Valor], DespJan[Categoria], ResumoDespesas[[#This Row],[Despesas]])","v":{"v":54,"d":"54.00"}},{"$f":"SUMIFS(DespFev[Valor], DespFev[Categoria], ResumoDespesas[[#This Row],[Despesas]])","v":{"v":54,"d":"54.00"}},{"$f":"SUMIFS(DespMar[Valor], DespMar[Categoria], ResumoDespesas[[#This Row],[Despesas]])","v":{"v":109,"d":"109.00"}},{"$f":"SUMIFS(DespAbr[Valor], DespAbr[Categoria], ResumoDespesas[[#This Row],[Despesas]])","v":{"v":98,"d":"98.00"}},{"$f":"SUMIFS(DespMai[Valor], DespMai[Categoria], ResumoDespesas[[#This Row],[Despesas]])","v":{"v":33,"d":"33.00"}},{"$f":"SUMIFS(DespJun[Valor], DespJun[Categoria], ResumoDespesas[[#This Row],[Despesas]])","v":{"v":441,"d":"441.00"}},{"$f":"SUMIFS(DespJul[Valor], DespJul[Categoria], ResumoDespesas[[#This Row],[Despesas]])","v":{"v":0,"d":"0.00"}},{"$f":"SUMIFS(DespAgo[Valor], DespAgo[Categoria], ResumoDespesas[[#This Row],[Despesas]])","v":{"v":0,"d":"0.00"}},{"$f":"SUMIFS(DespSet[Valor], DespSet[Categoria], ResumoDespesas[[#This Row],[Despesas]])","v":{"v":0,"d":"0.00"}},{"$f":"SUMIFS(DespOut[Valor], DespOut[Categoria], ResumoDespesas[[#This Row],[Despesas]])","v":{"v":0,"d":"0.00"}},{"$f":"SUMIFS(DespNov[Valor], DespNov[Categoria], ResumoDespesas[[#This Row],[Despesas]])","v":{"v":0,"d":"0.00"}},{"$f":"SUMIFS(DespDez[Valor], DespDez[Categoria], ResumoDespesas[[#This Row],[Despesas]])","v":{"v":99,"d":"99.00"}},{"$f":"SUM(ResumoDespesas[[#This Row],[Jan]:[Dez]])","v":{"v":888,"d":"888.00"}}]
["Total",{"$f":"SUBTOTAL(109,B5:B9)","v":{"v":861,"d":"861.00"}},{"v":861,"d":"861.00"},{"v":574,"d":"574.00"},{"v":817,"d":"817.00"},{"v":977,"d":"977.00"},{"v":1049,"d":"1,049.00"},{"v":0,"d":"0.00"},{"v":0,"d":"0.00"},{"v":0,"d":"0.00"},{"v":0,"d":"0.00"},{"v":0,"d":"0.00"},{"v":1049,"d":"1,049.00"},{"v":6188,"d":"6,188.00"}]

{"sheet":"jan","index":2,"n_rows":9,"n_cols":5,"rows_kept":9,"merged":[[0,0,0,2]]}
["DESPESAS DE JANEIRO",null,null,"Resumo","Dicas"]
["Data","N.º da ordem de compra","Valor","Categoria","Descrição"]
[{"$f":"DATE(YEAR(TODAY()),1,4)","v":"2016-01-04"},"A-12345",{"v":33,"d":"33.00"},"Despesa 1","Suprimentos"]
[{"$f":"DATE(YEAR(TODAY()),1,5)","v":"2016-01-05"},"A-12346",{"v":238,"d":"238.00"},"Despesa 2"]
[null,null,{"v":342,"d":"342.00"},"Despesa 4"]
[null,null,{"v":110,"d":"110.00"},"Despesa 3"]
[null,null,{"v":84,"d":"84.00"},"Despesa 4"]
[null,null,{"v":54,"d":"54.00"},"Despesa 5"]
["Total",null,{"$f":"SUBTOTAL(109,DespJan[Valor])","v":{"v":861,"d":"861.00"}}]

{"sheet":"fev","index":3,"n_rows":9,"n_cols":5,"rows_kept":9,"merged":[[0,0,0,2]]}
["DESPESAS DE FEVEREIRO",null,null,"Resumo","Dicas"]
["Data","N.º da ordem de compra","Valor","Categoria","Descrição"]
[{"$f":"DATE(YEAR(TODAY()),2,3)","v":"2016-02-03"},"A-12345",{"v":33,"d":"33.00"},"Despesa 1","Suprimentos"]
[{"$f":"DATE(YEAR(TODAY()),2,4)","v":"2016-02-04"},"A-12346",{"v":238,"d":"238.00"},"Despesa 2"]
[null,null,{"v":342,"d":"342.00"},"Despesa 1"]
[null,null,{"v":110,"d":"110.00"},"Despesa 3"]
[null,null,{"v":84,"d":"84.00"},"Despesa 4"]
[null,null,{"v":54,"d":"54.00"},"Despesa 5"]
["Total",null,{"$f":"SUBTOTAL(109,DespFev[Valor])","v":{"v":861,"d":"861.00"}}]

{"sheet":"mar","index":4,"n_rows":9,"n_cols":5,"rows_kept":9,"merged":[[0,0,0,2]]}
["DESPESAS DE MARÇO",null,null,"Resumo","Dicas"]
["Data","N.º da ordem de compra","Valor","Categoria","Descrição"]
[{"$f":"DATE(YEAR(TODAY()),3,5)","v":"2016-03-05"},"A-12345",{"v":33,"d":"33.00"},"Despesa 1","Suprimentos"]
[{"$f":"DATE(YEAR(TODAY()),3,6)","v":"2016-03-06"},"A-12346",{"v":238,"d":"238.00"},"Despesa 2"]
[null,null,{"v":55,"d":"55.00"},"Despesa 5"]
[null,null,{"v":110,"d":"110.00"},"Despesa 3"]
[null,null,{"v":84,"d":"84.00"},"Despesa 4"]
[null,null,{"v":54,"d":"54.00"},"Despesa 5"]
["Total",null,{"$f":"SUBTOTAL(109,DespMar[Valor])","v":{"v":574,"d":"574.00"}}]

{"sheet":"abr","index":5,"n_rows":9,"n_cols":5,"rows_kept":9,"merged":[[0,0,0,2]]}
["DESPESAS DE ABRIL",null,null,"Resumo","Dicas"]
["Data","N.º da ordem de compra","Valor","Categoria","Descrição"]
[{"$f":"DATE(YEAR(TODAY()),4,4)","v":"2016-04-04"},"A-12345",{"v":45,"d":"45.00"},"Despesa 1","Suprimentos"]
[{"$f":"DATE(YEAR(TODAY()),4,8)","v":"2016-04-08"},"A-12346",{"v":123,"d":"123.00"},"Despesa 2"]
[null,null,{"v":342,"d":"342.00"},"Despesa 4"]
[null,null,{"v":125,"d":"125.00"},"Despesa 3"]
[null,null,{"v":84,"d":"84.00"},"Despesa 4"]
[null,null,{"v":98,"d":"98.00"},"Despesa 5"]
["Total",null,{"$f":"SUBTOTAL(109,DespAbr[Valor])","v":{"v":817,"d":"817.00"}}]

{"sheet":"mai","index":6,"n_rows":9,"n_cols":5,"rows_kept":9,"merged":[[0,0,0,2]]}
["DESPESAS DE MAIO",null,null,"Resumo","Dicas"]
["Data","N.º da ordem de compra","Valor","Categoria","Descrição"]
[{"$f":"DATE(YEAR(TODAY()),5,3)","v":"2016-05-03"},"A-12345",{"v":33,"d":"33.00"},"Despesa 1","Suprimentos"]
[{"$f":"DATE(YEAR(TODAY()),5,8)","v":"2016-05-08"},"A-12346",{"v":111,"d":"111.00"},"Despesa 2"]
[null,null,{"v":342,"d":"342.00"},"Despesa 1"]
[null,null,{"v":333,"d":"333.00"},"Despesa 3"]
[null,null,{"v":125,"d":"125.00"},"Despesa 4"]
[null,null,{"v":33,"d":"33.00"},"Despesa 5"]
["Total",null,{"$f":"SUBTOTAL(109,DespMai[Valor])","v":{"v":977,"d":"977.00"}}]

{"sheet":"jun","index":7,"n_rows":9,"n_cols":5,"rows_kept":9,"merged":[[0,0,0,2]]}
["DESPESAS DE JUNHO",null,null,"Resumo","Dicas"]
["Data","N.º da ordem de compra","Valor","Categoria","Descrição"]
[{"$f":"DATE(YEAR(TODAY()),6,7)","v":"2016-06-07"},"A-12345",{"v":201,"d":"201.00"},"Despesa 1","Suprimentos"]
[{"$f":"DATE(YEAR(TODAY()),6,8)","v":"2016-06-08"},"A-12346",{"v":98,"d":"98.00"},"Despesa 2"]
[null,null,{"v":342,"d":"342.00"},"Despesa 5"]
[null,null,{"v":122,"d":"122.00"},"Despesa 3"]
[null,null,{"v":187,"d":"187.00"},"Despesa 4"]
[null,null,{"v":99,"d":"99.00"},"Despesa 5"]
["Total",null,{"$f":"SUBTOTAL(109,DespJun[Valor])","v":{"v":1049,"d":"1,049.00"}}]

{"sheet":"jul","index":8,"n_rows":9,"n_cols":5,"rows_kept":9,"merged":[[0,0,0,2]]}
["DESPESAS DE JULHO",null,null,"Resumo","Dicas"]
["Data","N.º da ordem de compra","Valor","Categoria","Descrição"]
[{"$f":"DATE(YEAR(TODAY()),7,9)","v":"2016-07-09"},"A-12345",null,"Despesa 1","Suprimentos"]
[{"$f":"DATE(YEAR(TODAY()),7,14)","v":"2016-07-14"},"A-12346",null,"Despesa 2"]
[{"$nulls":3},"Despesa 2"]
[{"$nulls":3},"Despesa 3"]
[{"$nulls":3},"Despesa 4"]
[{"$nulls":3},"Despesa 5"]
["Total",null,{"$f":"SUBTOTAL(109,DespJul[Valor])","v":{"v":0,"d":"0.00"}}]

{"sheet":"ago","index":9,"n_rows":9,"n_cols":5,"rows_kept":9,"merged":[[0,0,0,2]]}
["DESPESAS DE AGOSTO",null,null,"Resumo","Dicas"]
["Data","N.º da ordem de compra","Valor","Categoria","Descrição"]
[{"$f":"DATE(YEAR(TODAY()),8,8)","v":"2016-08-08"},"A-12345",null,"Despesa 1","Suprimentos"]
[{"$f":"DATE(YEAR(TODAY()),8,9)","v":"2016-08-09"},"A-12346",null,"Despesa 2"]
[{"$nulls":3},"Despesa 2"]
[{"$nulls":3},"Despesa 3"]
[{"$nulls":3},"Despesa 4"]
[{"$nulls":3},"Despesa 5"]
["Total",null,{"$f":"SUBTOTAL(109,DespAgo[Valor])","v":{"v":0,"d":"0.00"}}]

{"sheet":"set","index":10,"n_rows":9,"n_cols":5,"rows_kept":9,"merged":[[0,0,0,2]]}
["DESPESAS DE SETEMBRO",null,null,"Resumo","Dicas"]
["Data","N.º da ordem de compra","Valor","Categoria","Descrição"]
[{"$f":"DATE(YEAR(TODAY()),9,9)","v":"2016-09-09"},"A-12345",null,"Despesa 1","Suprimentos"]
[{"$f":"DATE(YEAR(TODAY()),9,15)","v":"2016-09-15"},"A-12346",null,"Despesa 2"]
[{"$nulls":3},"Despesa 2"]
[{"$nulls":3},"Despesa 3"]
[{"$nulls":3},"Despesa 4"]
[{"$nulls":3},"Despesa 5"]
["Total",null,{"$f":"SUBTOTAL(109,DespSet[Valor])","v":{"v":0,"d":"0.00"}}]

{"sheet":"out","index":11,"n_rows":9,"n_cols":5,"rows_kept":9,"merged":[[0,0,0,2]]}
["DESPESAS DE OUTUBRO",null,null,"Resumo","Dicas"]
["Data","N.º da ordem de compra","Valor","Categoria","Descrição"]
[{"$f":"DATE(YEAR(TODAY()),10,10)","v":"2016-10-10"},"A-12345",null,"Despesa 1","Suprimentos"]
[{"$f":"DATE(YEAR(TODAY()),10,21)","v":"2016-10-21"},"A-12346",null,"Despesa 2"]
[{"$nulls":3},"Despesa 2"]
[{"$nulls":3},"Despesa 3"]
[{"$nulls":3},"Despesa 4"]
[{"$nulls":3},"Despesa 5"]
["Total",null,{"$f":"SUBTOTAL(109,DespOut[Valor])","v":{"v":0,"d":"0.00"}}]

{"sheet":"nov","index":12,"n_rows":9,"n_cols":5,"rows_kept":9,"merged":[[0,0,0,2]]}
["DESPESAS DE NOVEMBRO",null,null,"Resumo","Dicas"]
["Data","N.º da ordem de compra","Valor","Categoria","Descrição"]
[{"$f":"DATE(YEAR(TODAY()),11,14)","v":"2016-11-14"},"A-12345",null,"Despesa 1","Suprimentos"]
[{"$f":"DATE(YEAR(TODAY()),11,21)","v":"2016-11-21"},"A-12346",null,"Despesa 2"]
[{"$nulls":3},"Despesa 2"]
[{"$nulls":3},"Despesa 3"]
[{"$nulls":3},"Despesa 4"]
[{"$nulls":3},"Despesa 5"]
["Total",null,{"$f":"SUBTOTAL(109,DespNov[Valor])","v":{"v":0,"d":"0.00"}}]

{"sheet":"dez","index":13,"n_rows":9,"n_cols":5,"rows_kept":9,"merged":[[0,0,0,2]]}
["DESPESAS DE DEZEMBRO",null,null,"Resumo","Dicas"]
["Data","N.º da ordem de compra","Valor","Categoria","Descrição"]
[{"$f":"DATE(YEAR(TODAY()),12,2)","v":"2016-12-02"},"A-12345",{"v":201,"d":"201.00"},"Despesa 1","Suprimentos"]
[{"$f":"DATE(YEAR(TODAY()),12,24)","v":"2016-12-24"},"A-12346",{"v":98,"d":"98.00"},"Despesa 2"]
[null,null,{"v":342,"d":"342.00"},"Despesa 2"]
[null,null,{"v":122,"d":"122.00"},"Despesa 3"]
[null,null,{"v":187,"d":"187.00"},"Despesa 4"]
[null,null,{"v":99,"d":"99.00"},"Despesa 5"]
["Total",null,{"$f":"SUBTOTAL(109,DespDez[Valor])","v":{"v":1049,"d":"1,049.00"}}]